[Event "Late-Titled-Tuesday-Blitz-June-25-2024"]
[Site "Chess.com"]
[Date "2024.06.25"]
[Round "4"]
[White "HanSchut"]
[Black "vanyakuba"]
[Result "0-1"]
[WhiteElo "2236"]
[BlackElo "2465"]
[TimeControl "180+1"]
[EndTime "14:37:26 PDT"]
[Termination "vanyakuba won by checkmate"]

1. e4 {[%clk 0:03:00.9]} 1... d5 {[%clk 0:02:54.7]} 2. exd5 {[%clk 0:03:00.4]}
2... Qxd5 {[%clk 0:02:54.5]} 3. Nc3 {[%clk 0:03:01]} 3... Qa5 {[%clk 0:02:53.4]}
4. d4 {[%clk 0:03:01.6]} 4... Nf6 {[%clk 0:02:52.8]} 5. Bd2 {[%clk 0:03:01.4]}
5... Bg4 {[%clk 0:02:51.4]} 6. f3 {[%clk 0:03:01.4]} 6... Bf5 {[%clk 0:02:50.8]}
7. Bc4 {[%clk 0:03:01]} 7... c6 {[%clk 0:02:49.9]} 8. Qe2 {[%clk 0:02:57.8]}
8... e6 {[%clk 0:02:44.1]} 9. d5 {[%clk 0:02:53.5]} 9... cxd5 {[%clk 0:02:02.5]}
10. Nxd5 {[%clk 0:02:53.2]} 10... Qd8 {[%clk 0:02:02.6]} 11. Nxf6+ {[%clk
0:02:53.1]} 11... Qxf6 {[%clk 0:01:50.8]} 12. O-O-O {[%clk 0:02:52.7]} 12... Nc6
{[%clk 0:01:49.4]} 13. g4 {[%clk 0:02:51.2]} 13... Bxc2 {[%clk 0:01:43.1]} 14.
Kxc2 {[%clk 0:02:31.2]} 14... Nd4+ {[%clk 0:01:42.6]} 15. Kb1 {[%clk 0:02:30.8]}
15... Nxe2 {[%clk 0:01:37.9]} 16. Bb5+ {[%clk 0:02:30.7]} 16... Kd8 {[%clk
0:01:23.8]} 17. Bc3+ {[%clk 0:01:55.5]} 17... Kc7 {[%clk 0:01:05.7]} 18. Bxf6
{[%clk 0:01:52.6]} 18... Nxg1 {[%clk 0:01:04.7]} 19. Be5+ {[%clk 0:01:51.8]}
19... Kb6 {[%clk 0:01:04.8]} 20. Rhxg1 {[%clk 0:01:02.2]} 20... Kxb5 {[%clk
0:01:03.4]} 21. Rd7 {[%clk 0:01:02.7]} 21... Bc5 {[%clk 0:00:58.2]} 22. Rgd1
{[%clk 0:00:52.7]} 22... f6 {[%clk 0:00:51.7]} 23. Bg3 {[%clk 0:00:42.2]} 23...
Ka6 {[%clk 0:00:44.3]} 24. Rxg7 {[%clk 0:00:39.1]} 24... h5 {[%clk 0:00:43.5]}
25. gxh5 {[%clk 0:00:29.8]} 25... Rxh5 {[%clk 0:00:44.4]} 26. Rdd7 {[%clk
0:00:23.7]} 26... Rf5 {[%clk 0:00:38.4]} 27. Rxb7 {[%clk 0:00:18.9]} 27... Rxf3
{[%clk 0:00:38]} 28. a4 {[%clk 0:00:17.6]} 28... Rf1+ {[%clk 0:00:24.8]} 29. Ka2
{[%clk 0:00:17.6]} 29... Rd8 {[%clk 0:00:23.3]} 30. Rb5 {[%clk 0:00:13.3]} 30...
Rd5 {[%clk 0:00:18.8]} 31. Rb3 {[%clk 0:00:05.8]} 31... f5 {[%clk 0:00:15.7]}
32. Bb8 {[%clk 0:00:04.6]} 32... Bb6 {[%clk 0:00:09.4]} 33. Bg3 {[%clk
0:00:02.3]} 33... f4 {[%clk 0:00:09.1]} 34. Bh4 {[%clk 0:00:01.6]} 34... f3
{[%clk 0:00:09.2]} 35. Be7 {[%clk 0:00:01]} 35... f2 {[%clk 0:00:09.7]} 36. Bb4
{[%clk 0:00:01.4]} 36... Ra1+ {[%clk 0:00:08]} 37. Kxa1 {[%clk 0:00:02]} 37...
f1=Q+ {[%clk 0:00:08.9]} 38. Ka2 {[%clk 0:00:02.9]} 38... Qc4 {[%clk 0:00:09.3]}
39. Ba3 {[%clk 0:00:02.4]} 39... Rd3 {[%clk 0:00:09.4]} 40. Rg3 {[%clk
0:00:02.6]} 40... Qxb3+ {[%clk 0:00:09.9]} 41. Kb1 {[%clk 0:00:02.2]} 41... Rd1#
{[%clk 0:00:10.8]} 0-1

[Event "Late-Titled-Tuesday-Blitz-June-25-2024"]
[Site "Chess.com"]
[Date "2024.06.25"]
[Round "4"]
[White "Bkmzzzzz"]
[Black "chessbaerchen"]
[Result "0-1"]
[WhiteElo "2405"]
[BlackElo "2646"]
[TimeControl "180+1"]
[EndTime "14:37:28 PDT"]
[Termination "chessbaerchen won by checkmate"]

1. e4 {[%clk 0:03:00.9]} 1... e6 {[%clk 0:02:59.4]} 2. Nf3 {[%clk 0:02:59.8]}
2... d5 {[%clk 0:02:59.2]} 3. exd5 {[%clk 0:03:00.7]} 3... exd5 {[%clk
0:02:59.6]} 4. d4 {[%clk 0:03:01]} 4... Nf6 {[%clk 0:03:00.2]} 5. Bd3 {[%clk
0:03:00.1]} 5... c5 {[%clk 0:02:59.8]} 6. O-O {[%clk 0:02:59.4]} 6... c4 {[%clk
0:02:59]} 7. Re1+ {[%clk 0:02:59.9]} 7... Be7 {[%clk 0:02:59.2]} 8. Bf1 {[%clk
0:03:00.3]} 8... O-O {[%clk 0:02:59.4]} 9. b3 {[%clk 0:02:58.7]} 9... cxb3
{[%clk 0:03:00.3]} 10. axb3 {[%clk 0:02:59.3]} 10... Nc6 {[%clk 0:03:01]} 11. c4
{[%clk 0:02:59.4]} 11... Bg4 {[%clk 0:03:00.3]} 12. Bb2 {[%clk 0:02:37.9]} 12...
Bb4 {[%clk 0:02:54.3]} 13. Re3 {[%clk 0:02:11.4]} 13... Re8 {[%clk 0:02:47.9]}
14. Rxe8+ {[%clk 0:01:58.2]} 14... Qxe8 {[%clk 0:02:48.8]} 15. h3 {[%clk
0:01:58.7]} 15... Bh5 {[%clk 0:02:45.4]} 16. c5 {[%clk 0:01:51.5]} 16... Ne4
{[%clk 0:02:41.4]} 17. Qd3 {[%clk 0:01:45.5]} 17... Qe7 {[%clk 0:02:33.7]} 18.
Nfd2 {[%clk 0:01:24.9]} 18... Re8 {[%clk 0:02:29.1]} 19. Nxe4 {[%clk 0:01:24.6]}
19... dxe4 {[%clk 0:02:29.7]} 20. Qe3 {[%clk 0:01:22.4]} 20... Bg6 {[%clk
0:02:25]} 21. Bc4 {[%clk 0:01:20.1]} 21... a6 {[%clk 0:02:23]} 22. Nd2 {[%clk
0:01:15.5]} 22... Rd8 {[%clk 0:02:17.8]} 23. Nf1 {[%clk 0:01:05]} 23... Qf6
{[%clk 0:02:09.3]} 24. Rb1 {[%clk 0:00:47.8]} 24... Nxd4 {[%clk 0:02:05.3]} 25.
c6 {[%clk 0:00:30.7]} 25... bxc6 {[%clk 0:02:00.9]} 26. Bxa6 {[%clk 0:00:30.9]}
26... Bc5 {[%clk 0:01:56]} 27. Qg3 {[%clk 0:00:27.5]} 27... e3 {[%clk
0:01:45.5]} 28. Bxd4 {[%clk 0:00:22]} 28... Bxd4 {[%clk 0:01:39.2]} 29. Rd1
{[%clk 0:00:21.9]} 29... exf2+ {[%clk 0:01:29.4]} 30. Kh1 {[%clk 0:00:22.2]}
30... Re8 {[%clk 0:01:23]} 31. Bc4 {[%clk 0:00:21.2]} 31... Be5 {[%clk
0:01:19.5]} 32. Qe3 {[%clk 0:00:19.2]} 32... h5 {[%clk 0:01:10.4]} 33. Qc5
{[%clk 0:00:17.8]} 33... Qf4 {[%clk 0:01:06.9]} 34. Rd2 {[%clk 0:00:16.9]} 34...
Bb8 {[%clk 0:00:20.6]} 35. Rxf2 {[%clk 0:00:16.3]} 35... Qe4 {[%clk 0:00:20.7]}
36. Rf3 {[%clk 0:00:14.3]} 36... Qe1 {[%clk 0:00:18.3]} 37. Qxc6 {[%clk
0:00:13.3]} 37... Rf8 {[%clk 0:00:16.2]} 38. Qd7 {[%clk 0:00:11.8]} 38... Qe5
{[%clk 0:00:12.9]} 39. Qb7 {[%clk 0:00:08.9]} 39... Kh7 {[%clk 0:00:11.4]} 40.
Bd5 {[%clk 0:00:07.5]} 40... f6 {[%clk 0:00:10.8]} 41. Re3 {[%clk 0:00:07.2]}
41... Qf4 {[%clk 0:00:10.9]} 42. Re1 {[%clk 0:00:07.3]} 42... Bd3 {[%clk
0:00:10.3]} 43. Bf3 {[%clk 0:00:07.3]} 43... Bxf1 {[%clk 0:00:09.5]} 44. Rxf1
{[%clk 0:00:07.1]} 44... Qh2# {[%clk 0:00:09.6]} 0-1

[Event "Late-Titled-Tuesday-Blitz-June-25-2024"]
[Site "Chess.com"]
[Date "2024.06.25"]
[Round "4"]
[White "akanga001"]
[Black "duone"]
[Result "1-0"]
[WhiteElo "2196"]
[BlackElo "2383"]
[TimeControl "180+1"]
[EndTime "14:37:31 PDT"]
[Termination "akanga001 won on time"]

1. d4 {[%clk 0:02:50.1]} 1... c5 {[%clk 0:02:53.6]} 2. d5 {[%clk 0:02:49.6]}
2... e5 {[%clk 0:02:53.5]} 3. c4 {[%clk 0:02:49.9]} 3... d6 {[%clk 0:02:52.1]}
4. Nc3 {[%clk 0:02:50.2]} 4... Nf6 {[%clk 0:02:47.5]} 5. Bg5 {[%clk 0:02:48.1]}
5... Be7 {[%clk 0:02:47.8]} 6. Bxf6 {[%clk 0:02:47.9]} 6... Bxf6 {[%clk
0:02:47.4]} 7. e4 {[%clk 0:02:48.3]} 7... O-O {[%clk 0:02:44.9]} 8. h3 {[%clk
0:02:46.9]} 8... Be7 {[%clk 0:02:45.4]} 9. Nf3 {[%clk 0:02:47.4]} 9... f5 {[%clk
0:02:44.3]} 10. Bd3 {[%clk 0:02:47.2]} 10... Na6 {[%clk 0:02:43]} 11. a3 {[%clk
0:02:46.5]} 11... Nc7 {[%clk 0:02:42]} 12. exf5 {[%clk 0:02:46.1]} 12... Bxf5
{[%clk 0:02:42]} 13. Bxf5 {[%clk 0:02:44.3]} 13... Rxf5 {[%clk 0:02:42.9]} 14.
Ne4 {[%clk 0:02:44.3]} 14... Rf4 {[%clk 0:02:39.6]} 15. Qe2 {[%clk 0:02:42.5]}
15... b5 {[%clk 0:02:36.2]} 16. b3 {[%clk 0:02:39.5]} 16... a5 {[%clk
0:02:29.1]} 17. O-O {[%clk 0:02:38.7]} 17... a4 {[%clk 0:02:12.8]} 18. bxa4
{[%clk 0:01:49.4]} 18... Rxa4 {[%clk 0:02:09.7]} 19. Rfc1 {[%clk 0:01:29.6]}
19... Qf8 {[%clk 0:01:59.9]} 20. cxb5 {[%clk 0:01:22.3]} 20... Raxe4 {[%clk
0:01:54.4]} 21. Qb2 {[%clk 0:01:20.3]} 21... Nxd5 {[%clk 0:01:44.6]} 22. b6
{[%clk 0:01:17.2]} 22... Bd8 {[%clk 0:01:13.1]} 23. b7 {[%clk 0:01:16.7]} 23...
Bc7 {[%clk 0:01:13.4]} 24. Qb3 {[%clk 0:01:14.5]} 24... c4 {[%clk 0:01:12.8]}
25. Qb5 {[%clk 0:01:13.2]} 25... Nb6 {[%clk 0:00:45.1]} 26. a4 {[%clk
0:01:10.6]} 26... Nd7 {[%clk 0:00:39.2]} 27. Qxd7 {[%clk 0:01:06.2]} 27... Rf7
{[%clk 0:00:22.6]} 28. Qc8 {[%clk 0:01:00.3]} 28... Bb8 {[%clk 0:00:17.8]} 29.
Ng5 {[%clk 0:01:00]} 29... Ref4 {[%clk 0:00:04.5]} 30. Ne6 {[%clk 0:00:50]}
30... Rxf2 {[%clk 0:00:02]} 31. Nxf8 {[%clk 0:00:49]} 31... Rxf8 {[%clk
0:00:02.9]} 32. Qe6+ {[%clk 0:00:46.5]} 32... Kh8 {[%clk 0:00:03.4]} 33. Rf1
{[%clk 0:00:45.5]} 33... Ba7 {[%clk 0:00:03]} 34. Rxf2 {[%clk 0:00:44.6]} 34...
Bxf2+ {[%clk 0:00:03.7]} 35. Kh1 {[%clk 0:00:44.7]} 35... Bd4 {[%clk 0:00:04.3]}
36. Qc8 {[%clk 0:00:40.4]} 36... Kg8 {[%clk 0:00:04.1]} 37. Qxf8+ {[%clk
0:00:39.6]} 37... Kxf8 {[%clk 0:00:05]} 38. b8=Q+ {[%clk 0:00:39]} 38... Ke7
{[%clk 0:00:04.5]} 39. Rb1 {[%clk 0:00:37.7]} 39... Ke6 {[%clk 0:00:03.5]} 40.
a5 {[%clk 0:00:38.3]} 40... c3 {[%clk 0:00:02.8]} 41. a6 {[%clk 0:00:38.3]}
41... Be3 {[%clk 0:00:02.2]} 42. Qc8+ {[%clk 0:00:36.2]} 42... Kf6 {[%clk
0:00:01.5]} 43. Qxc3 {[%clk 0:00:36.8]} 43... Bd4 {[%clk 0:00:02.3]} 44. Qf3+
{[%clk 0:00:34.5]} 44... Ke6 {[%clk 0:00:03.2]} 45. Rb7 {[%clk 0:00:29.6]} 45...
d5 {[%clk 0:00:03.5]} 46. Qf7+ {[%clk 0:00:29]} 46... Kd6 {[%clk 0:00:04.1]} 47.
Qe7+ {[%clk 0:00:27.7]} 1-0

[Event "Late-Titled-Tuesday-Blitz-June-25-2024"]
[Site "Chess.com"]
[Date "2024.06.25"]
[Round "4"]
[White "jcibarra"]
[Black "KChor05"]
[Result "0-1"]
[WhiteElo "2919"]
[BlackElo "2621"]
[TimeControl "180+1"]
[EndTime "14:37:32 PDT"]
[Termination "KChor05 won on time"]

1. e4 {[%clk 0:02:59.3]} 1... c5 {[%clk 0:02:59.6]} 2. Nf3 {[%clk 0:02:59.8]}
2... Nc6 {[%clk 0:02:57.2]} 3. Nc3 {[%clk 0:02:59.4]} 3... g6 {[%clk 0:02:57.1]}
4. d4 {[%clk 0:02:59.7]} 4... cxd4 {[%clk 0:02:58]} 5. Nxd4 {[%clk 0:03:00]}
5... Bg7 {[%clk 0:02:58.6]} 6. Be3 {[%clk 0:03:00.4]} 6... Nf6 {[%clk
0:02:58.8]} 7. Bc4 {[%clk 0:03:00.9]} 7... O-O {[%clk 0:02:57.6]} 8. Bb3 {[%clk
0:03:01.2]} 8... d6 {[%clk 0:02:54.4]} 9. f3 {[%clk 0:03:00.7]} 9... Bd7 {[%clk
0:02:51.9]} 10. h4 {[%clk 0:03:00.4]} 10... Na5 {[%clk 0:02:35.3]} 11. h5 {[%clk
0:02:55.3]} 11... Nxb3 {[%clk 0:02:24.7]} 12. axb3 {[%clk 0:02:52.7]} 12... e5
{[%clk 0:01:52.1]} 13. Nde2 {[%clk 0:02:51.2]} 13... Be6 {[%clk 0:01:44.3]} 14.
hxg6 {[%clk 0:02:47.4]} 14... fxg6 {[%clk 0:01:44.3]} 15. Bg5 {[%clk 0:02:30.8]}
15... Qd7 {[%clk 0:01:26.6]} 16. Qd2 {[%clk 0:02:28.1]} 16... b5 {[%clk
0:01:13.8]} 17. Rd1 {[%clk 0:02:17.6]} 17... b4 {[%clk 0:01:04.8]} 18. Na4
{[%clk 0:02:17.8]} 18... Rac8 {[%clk 0:00:50.6]} 19. Qxd6 {[%clk 0:01:39]} 19...
Rxc2 {[%clk 0:00:45.9]} 20. Qxe5 {[%clk 0:01:39]} 20... Qf7 {[%clk 0:00:29.2]}
21. Nd4 {[%clk 0:01:23.7]} 21... Bxb3 {[%clk 0:00:29.4]} 22. Nxc2 {[%clk
0:00:36.5]} 22... Bxc2 {[%clk 0:00:30.3]} 23. Rc1 {[%clk 0:00:27.5]} 23... Nxe4
{[%clk 0:00:21.7]} 24. Qh2 {[%clk 0:00:23.3]} 24... Nxg5 {[%clk 0:00:19.4]} 25.
Rxc2 {[%clk 0:00:23.9]} 25... Re8+ {[%clk 0:00:15.8]} 26. Kf1 {[%clk 0:00:20]}
26... Qb3 {[%clk 0:00:14.7]} 27. Qc7 {[%clk 0:00:18.5]} 27... Qxa4 {[%clk
0:00:11]} 28. Rh4 {[%clk 0:00:16]} 28... Qa1+ {[%clk 0:00:10.1]} 29. Rc1 {[%clk
0:00:15.3]} 29... Qxb2 {[%clk 0:00:09.7]} 30. Qc4+ {[%clk 0:00:15]} 30... Kh8
{[%clk 0:00:08.6]} 31. Kg1 {[%clk 0:00:15.2]} 31... Qf6 {[%clk 0:00:07.1]} 32.
Qxb4 {[%clk 0:00:13.4]} 32... Nxf3+ {[%clk 0:00:07.2]} 33. gxf3 {[%clk
0:00:12.7]} 33... Qxf3 {[%clk 0:00:07.7]} 34. Qc4 {[%clk 0:00:04.5]} 34... Qg3+
{[%clk 0:00:07.5]} 35. Kh1 {[%clk 0:00:05.1]} 35... h5 {[%clk 0:00:07.5]} 36.
Rh2 {[%clk 0:00:04.8]} 36... Qf3+ {[%clk 0:00:07.8]} 37. Rg2 {[%clk 0:00:05.5]}
37... Kh7 {[%clk 0:00:07.7]} 38. Rg1 {[%clk 0:00:05.3]} 38... Qh3+ {[%clk
0:00:07.3]} 39. Rh2 {[%clk 0:00:06]} 39... Qf3+ {[%clk 0:00:07.9]} 40. Rhg2
{[%clk 0:00:06.7]} 40... Re4 {[%clk 0:00:07.9]} 41. Qxe4 {[%clk 0:00:03.2]}
41... Qxe4 {[%clk 0:00:08.8]} 42. Kh2 {[%clk 0:00:03.1]} 42... Be5+ {[%clk
0:00:08.2]} 0-1

[Event "Late-Titled-Tuesday-Blitz-June-25-2024"]
[Site "Chess.com"]
[Date "2024.06.25"]
[Round "4"]
[White "sari07"]
[Black "Winner_7777"]
[Result "1/2-1/2"]
[WhiteElo "2366"]
[BlackElo "2508"]
[TimeControl "180+1"]
[EndTime "14:37:32 PDT"]
[Termination "Game drawn by repetition"]

1. d4 {[%clk 0:03:00.9]} 1... d5 {[%clk 0:02:59.8]} 2. Nc3 {[%clk 0:03:00.4]}
2... Nf6 {[%clk 0:02:58.6]} 3. Bf4 {[%clk 0:03:00.2]} 3... a6 {[%clk 0:02:58.3]}
4. e3 {[%clk 0:02:58.1]} 4... Bf5 {[%clk 0:02:58.7]} 5. Nf3 {[%clk 0:02:54.3]}
5... e6 {[%clk 0:02:40.1]} 6. Ne5 {[%clk 0:02:52.7]} 6... Nfd7 {[%clk
0:02:40.1]} 7. g4 {[%clk 0:02:48.4]} 7... Bg6 {[%clk 0:02:39.7]} 8. h4 {[%clk
0:02:38.1]} 8... Nxe5 {[%clk 0:02:37]} 9. Bxe5 {[%clk 0:02:39]} 9... h5 {[%clk
0:02:24.2]} 10. g5 {[%clk 0:02:35.3]} 10... c5 {[%clk 0:02:20.5]} 11. Bd3 {[%clk
0:02:27.6]} 11... Bxd3 {[%clk 0:02:17.9]} 12. cxd3 {[%clk 0:02:09.5]} 12... Nc6
{[%clk 0:02:15.2]} 13. Qb3 {[%clk 0:02:02.6]} 13... b5 {[%clk 0:02:04.6]} 14. a4
{[%clk 0:01:37.3]} 14... b4 {[%clk 0:01:45.2]} 15. Ne2 {[%clk 0:01:35.3]} 15...
c4 {[%clk 0:01:42]} 16. dxc4 {[%clk 0:01:29.7]} 16... Na5 {[%clk 0:01:42.2]} 17.
Qc2 {[%clk 0:01:25.1]} 17... dxc4 {[%clk 0:01:38.4]} 18. Nf4 {[%clk 0:01:16.2]}
18... Rc8 {[%clk 0:01:23]} 19. Qe4 {[%clk 0:00:53]} 19... Nb3 {[%clk 0:00:51.7]}
20. Rd1 {[%clk 0:00:51.4]} 20... c3 {[%clk 0:00:34.8]} 21. bxc3 {[%clk
0:00:51.2]} 21... bxc3 {[%clk 0:00:35.7]} 22. Qc2 {[%clk 0:00:32.4]} 22... Na5
{[%clk 0:00:22.3]} 23. d5 {[%clk 0:00:28.2]} 23... exd5 {[%clk 0:00:16.6]} 24.
Nxd5 {[%clk 0:00:22]} 24... Nc4 {[%clk 0:00:09.2]} 25. Nf6+ {[%clk 0:00:20.5]}
25... gxf6 {[%clk 0:00:09.9]} 26. Rxd8+ {[%clk 0:00:20.8]} 26... Rxd8 {[%clk
0:00:10.6]} 27. Bxf6 {[%clk 0:00:19.7]} 27... Rc8 {[%clk 0:00:06.3]} 28. Bxh8
{[%clk 0:00:18.6]} 28... Na3 {[%clk 0:00:04.2]} 29. Qxc3 {[%clk 0:00:18.3]}
29... Rxc3 {[%clk 0:00:03.7]} 30. Bxc3 {[%clk 0:00:19.2]} 30... Nc4 {[%clk
0:00:02.7]} 31. Ke2 {[%clk 0:00:19.3]} 31... Nb6 {[%clk 0:00:03]} 32. a5 {[%clk
0:00:17.3]} 32... Nd5 {[%clk 0:00:03.7]} 33. Bd4 {[%clk 0:00:16.4]} 33... Bb4
{[%clk 0:00:04.1]} 34. Bb6 {[%clk 0:00:16.6]} 34... Kd7 {[%clk 0:00:03.5]} 35.
Rd1 {[%clk 0:00:16.4]} 35... Kc6 {[%clk 0:00:03.9]} 36. f4 {[%clk 0:00:12.1]}
36... Nc3+ {[%clk 0:00:04.2]} 37. Kd2 {[%clk 0:00:10.5]} 37... Nxd1+ {[%clk
0:00:05.1]} 38. Kxd1 {[%clk 0:00:11.4]} 38... Kd5 {[%clk 0:00:03.6]} 39. Ke2
{[%clk 0:00:10.4]} 39... Ke4 {[%clk 0:00:04.1]} 40. Bc7 {[%clk 0:00:09.6]} 40...
Bc3 {[%clk 0:00:04]} 41. Bb6 {[%clk 0:00:10.1]} 41... Bb4 {[%clk 0:00:04.3]} 42.
Kf2 {[%clk 0:00:10.5]} 42... Bc3 {[%clk 0:00:04.5]} 43. Ke2 {[%clk 0:00:10.9]}
43... Bb4 {[%clk 0:00:05]} 1/2-1/2

[Event "Late-Titled-Tuesday-Blitz-June-25-2024"]
[Site "Chess.com"]
[Date "2024.06.25"]
[Round "4"]
[White "ATM622"]
[Black "ArchibaldCerveza29"]
[Result "0-1"]
[WhiteElo "2543"]
[BlackElo "2402"]
[TimeControl "180+1"]
[EndTime "14:37:33 PDT"]
[Termination "ArchibaldCerveza29 won by resignation"]

1. d4 {[%clk 0:03:00.9]} 1... Nf6 {[%clk 0:02:59.8]} 2. c4 {[%clk 0:03:01]} 2...
g6 {[%clk 0:03:00.4]} 3. g3 {[%clk 0:03:00.9]} 3... Bg7 {[%clk 0:03:00.4]} 4.
Bg2 {[%clk 0:03:01.3]} 4... c6 {[%clk 0:03:01]} 5. Nf3 {[%clk 0:03:01.6]} 5...
d5 {[%clk 0:03:01.5]} 6. O-O {[%clk 0:03:01.2]} 6... O-O {[%clk 0:03:02.1]} 7.
b3 {[%clk 0:02:59]} 7... dxc4 {[%clk 0:02:14.3]} 8. bxc4 {[%clk 0:02:57]} 8...
c5 {[%clk 0:02:14.8]} 9. Bb2 {[%clk 0:02:51.9]} 9... cxd4 {[%clk 0:02:14.5]} 10.
Nxd4 {[%clk 0:02:49]} 10... Qb6 {[%clk 0:02:13]} 11. Nb3 {[%clk 0:02:41.3]}
11... Rd8 {[%clk 0:02:09]} 12. Qc1 {[%clk 0:02:37.7]} 12... Be6 {[%clk
0:02:06.9]} 13. c5 {[%clk 0:02:29.3]} 13... Qa6 {[%clk 0:01:58.4]} 14. c6 {[%clk
0:02:22.4]} 14... Nxc6 {[%clk 0:01:55.9]} 15. Nc5 {[%clk 0:02:18.4]} 15... Qc4
{[%clk 0:01:43.4]} 16. Nxb7 {[%clk 0:02:09.1]} 16... Rdc8 {[%clk 0:01:22.4]} 17.
Qxc4 {[%clk 0:01:53.3]} 17... Bxc4 {[%clk 0:01:22.2]} 18. Rc1 {[%clk 0:01:53.7]}
18... Bd5 {[%clk 0:01:20.9]} 19. Bxd5 {[%clk 0:01:48.2]} 19... Nxd5 {[%clk
0:01:21.8]} 20. Bxg7 {[%clk 0:01:47.4]} 20... Kxg7 {[%clk 0:01:22.7]} 21. Nc3
{[%clk 0:01:46.2]} 21... Nxc3 {[%clk 0:01:21.9]} 22. Rxc3 {[%clk 0:01:45.8]}
22... Nd4 {[%clk 0:01:22.8]} 23. Rxc8 {[%clk 0:01:24.9]} 23... Rxc8 {[%clk
0:01:23.7]} 24. Kf1 {[%clk 0:01:23.3]} 24... Rc2 {[%clk 0:01:18.9]} 25. e3
{[%clk 0:01:20.3]} 25... Nf3 {[%clk 0:01:18.8]} 26. Kg2 {[%clk 0:01:01]} 26...
Ne5 {[%clk 0:01:16.5]} 27. a4 {[%clk 0:00:45.7]} 27... h5 {[%clk 0:01:14.4]} 28.
a5 {[%clk 0:00:44.2]} 28... Nd3 {[%clk 0:01:05.4]} 29. Rf1 {[%clk 0:00:42.7]}
29... Rc7 {[%clk 0:01:05]} 30. Rb1 {[%clk 0:00:28.6]} 30... Rc2 {[%clk 0:01:04]}
31. Rf1 {[%clk 0:00:28.4]} 31... Rb2 {[%clk 0:01:04.4]} 32. Nd8 {[%clk
0:00:22.8]} 32... Ne5 {[%clk 0:01:02.6]} 33. h3 {[%clk 0:00:15.5]} 33... Ra2
{[%clk 0:01:02.6]} 34. Rb1 {[%clk 0:00:12.2]} 34... Rxa5 {[%clk 0:01:00.5]} 35.
Rb7 {[%clk 0:00:12.2]} 35... Kf6 {[%clk 0:00:59.5]} 36. f4 {[%clk 0:00:08.5]}
36... Ra2+ {[%clk 0:00:58.5]} 37. Kf1 {[%clk 0:00:08.1]} 37... Nc4 {[%clk
0:00:57.2]} 38. e4 {[%clk 0:00:06.7]} 38... Nd2+ {[%clk 0:00:56.2]} 39. Ke1
{[%clk 0:00:05.6]} 39... Nxe4 {[%clk 0:00:57.1]} 40. Nc6 {[%clk 0:00:04.5]}
40... Nxg3 {[%clk 0:00:49]} 41. Kd1 {[%clk 0:00:04]} 41... Nf5 {[%clk
0:00:36.2]} 42. Nxa7 {[%clk 0:00:02.9]} 42... Rh2 {[%clk 0:00:34.5]} 43. Nc6
{[%clk 0:00:02.3]} 43... Rxh3 {[%clk 0:00:33.9]} 44. Ke2 {[%clk 0:00:02.7]}
44... Rc3 {[%clk 0:00:27.5]} 45. Ne5 {[%clk 0:00:02.7]} 45... h4 {[%clk
0:00:24.7]} 46. Kf2 {[%clk 0:00:02.7]} 46... h3 {[%clk 0:00:24.4]} 47. Rb6+
{[%clk 0:00:02.5]} 47... Kg7 {[%clk 0:00:23.9]} 48. Rb7 {[%clk 0:00:02.3]} 48...
Rc2+ {[%clk 0:00:23.4]} 49. Kg1 {[%clk 0:00:02.2]} 49... h2+ {[%clk 0:00:23.1]}
0-1

[Event "Late-Titled-Tuesday-Blitz-June-25-2024"]
[Site "Chess.com"]
[Date "2024.06.25"]
[Round "4"]
[White "norwaytoadog"]
[Black "GMChessrob"]
[Result "0-1"]
[WhiteElo "2377"]
[BlackElo "2641"]
[TimeControl "180+1"]
[EndTime "14:37:35 PDT"]
[Termination "GMChessrob won on time"]

1. e4 {[%clk 0:02:59.4]} 1... e5 {[%clk 0:02:59.6]} 2. Nf3 {[%clk 0:02:59.5]}
2... Nc6 {[%clk 0:03:00.3]} 3. Bb5 {[%clk 0:02:58.8]} 3... Nf6 {[%clk
0:03:00.9]} 4. d3 {[%clk 0:02:57.6]} 4... Bc5 {[%clk 0:03:00.8]} 5. Bxc6 {[%clk
0:02:57.7]} 5... dxc6 {[%clk 0:03:01]} 6. Nbd2 {[%clk 0:02:57.7]} 6... Nd7
{[%clk 0:03:01.2]} 7. Nb3 {[%clk 0:02:56]} 7... Be7 {[%clk 0:02:59.1]} 8. O-O
{[%clk 0:02:54.4]} 8... O-O {[%clk 0:02:59]} 9. Be3 {[%clk 0:02:49.8]} 9... c5
{[%clk 0:02:59.1]} 10. a4 {[%clk 0:02:48.9]} 10... b6 {[%clk 0:02:49]} 11. a5
{[%clk 0:02:46.1]} 11... Bb7 {[%clk 0:02:43]} 12. Nbd2 {[%clk 0:02:35.6]} 12...
Re8 {[%clk 0:02:37.4]} 13. Qe2 {[%clk 0:02:20.6]} 13... f6 {[%clk 0:02:36.3]}
14. Nh4 {[%clk 0:02:16.1]} 14... Nf8 {[%clk 0:02:36.5]} 15. Nf5 {[%clk
0:02:13.3]} 15... Ne6 {[%clk 0:02:37.1]} 16. g3 {[%clk 0:02:07.3]} 16... Bf8
{[%clk 0:02:36.9]} 17. f4 {[%clk 0:02:03]} 17... exf4 {[%clk 0:02:28.9]} 18.
gxf4 {[%clk 0:02:03]} 18... g6 {[%clk 0:02:28.2]} 19. Ng3 {[%clk 0:01:58.2]}
19... f5 {[%clk 0:02:28.1]} 20. c3 {[%clk 0:01:46]} 20... Bh6 {[%clk 0:02:11.3]}
21. Qf2 {[%clk 0:01:39.1]} 21... Qxd3 {[%clk 0:01:54.5]} 22. Rad1 {[%clk
0:01:33.1]} 22... Rad8 {[%clk 0:01:25.3]} 23. exf5 {[%clk 0:01:13.5]} 23... Nd4
{[%clk 0:01:07.7]} 24. Bxd4 {[%clk 0:00:47.4]} 24... cxd4 {[%clk 0:01:08.6]} 25.
Nde4 {[%clk 0:00:47]} 25... Qc4 {[%clk 0:00:34.7]} 26. Nf6+ {[%clk 0:00:42.8]}
26... Kf7 {[%clk 0:00:31.5]} 27. Nxe8 {[%clk 0:00:30.7]} 27... Rxe8 {[%clk
0:00:23.5]} 28. fxg6+ {[%clk 0:00:25.8]} 28... hxg6 {[%clk 0:00:23.2]} 29. Rxd4
{[%clk 0:00:22]} 29... Qc6 {[%clk 0:00:23]} 30. h4 {[%clk 0:00:17.9]} 30... Bf8
{[%clk 0:00:20.1]} 31. f5 {[%clk 0:00:15.5]} 31... g5 {[%clk 0:00:19.4]} 32.
hxg5 {[%clk 0:00:10.5]} 32... Bc5 {[%clk 0:00:19.6]} 33. g6+ {[%clk 0:00:10.4]}
33... Kg8 {[%clk 0:00:20]} 34. f6 {[%clk 0:00:10]} 34... Rf8 {[%clk 0:00:10.7]}
35. f7+ {[%clk 0:00:09]} 35... Kg7 {[%clk 0:00:11.2]} 36. Nh5+ {[%clk
0:00:08.5]} 36... Kh6 {[%clk 0:00:10.4]} 37. Qf4+ {[%clk 0:00:08]} 37... Kxg6
{[%clk 0:00:09.4]} 38. Qf5+ {[%clk 0:00:07]} 38... Kh6 {[%clk 0:00:09.3]} 39.
Qf4+ {[%clk 0:00:04.6]} 39... Kg6 {[%clk 0:00:09.5]} 40. Qg4+ {[%clk 0:00:02.4]}
40... Kh6 {[%clk 0:00:09.1]} 41. Qg7+ {[%clk 0:00:02.1]} 41... Kxh5 {[%clk
0:00:10]} 42. Qg4+ {[%clk 0:00:01.9]} 42... Kh6 {[%clk 0:00:10.4]} 43. Qh4+
{[%clk 0:00:02]} 43... Kg6 {[%clk 0:00:10.7]} 0-1